bitfinex/quotes_SOLUSD_20250306
["timestamp","ask_amount","ask_price","bid_price","bid_amount"]
[1741269446252,33.45194298,147.23,147.2,8.3082]
[1741269446451,33.45194298,147.23,147.21,0.14216157]
[1741269446858,33.45194298,147.24,147.2,8.3082]
[1741269447160,33.45194298,147.24,147.21,0.14216157]
[1741269447360,8.04,147.24,147.21,0.14216157]
[1741269447949,8.04,147.24,147.23,0.14216157]
[1741269448954,8.04,147.24,147.23,33.59410455]
[1741269449156,8.04,147.28,147.23,33.59410455]
[1741269449354,8.04,147.28,147.22,6.7925]
[1741269449355,8.04,147.28,147.26,0.14216157]
[1741269449883,8.04,147.28,147.27,6.93236157]
[1741269450450,8.04,147.28,147.27,0.14216157]
[1741269451966,8.04,147.28,147.27,6.93236157]
[1741269452170,8.04,147.28,147.27,0.14216157]
[1741269453570,41.49194298,147.28,147.27,0.14216157]
[1741269453772,8.04,147.28,147.27,0.14216157]
[1741269453977,8.04,147.28,147.27,6.93236157]
[1741269454171,8.04,147.28,147.27,0.14216157]
[1741269454485,8.04,147.28,147.27,6.93236157]
[1741269456380,8.04,147.28,147.27,0.14216157]
[1741269459278,8.04,147.28,147.25,6.8241]
[1741269459451,8.04,147.28,147.26,0.14216157]
[1741269459653,0.03,147.29,147.26,33.59410455]
[1741269460062,0.03,147.29,147.28,0.14216157]
[1741269460272,0.03,147.29,147.28,33.59410455]
[1741269460483,0.03,147.29,147.28,0.14216157]
[1741269461070,7.5846,147.32,147.28,33.59410455]
[1741269461284,7.5846,147.32,147.28,0.14216157]
[1741269461451,7.5846,147.32,147.28,33.59410455]
[1741269461653,7.5846,147.32,147.3,0.14216157]
[1741269461949,33.45194298,147.36,147.32,0.14216157]
[1741269462152,8.02,147.35,147.32,0.14216157]
[1741269462564,40.26764298,147.37,147.32,0.14216157]
[1741269462765,8.02,147.36,147.32,0.14216157]
[1741269462963,8.02,147.36,147.33,33.45194298]
[1741269463172,8.05,147.37,147.34,0.14216157]
[1741269463788,0.03,147.37,147.36,33.59410455]
[1741269463985,0.03,147.37,147.36,41.54800455]
[1741269464185,0.03,147.37,147.36,48.33410455]
[1741269464778,0.03,147.37,147.36,48.26478373]
[1741269464978,161.75,147.44,147.37,0.14216157]
[1741269464979,8.05,147.44,147.37,0.14216157]
[1741269465189,8.05,147.44,147.42,0.14216157]
[1741269465693,0.03,147.44,147.42,0.14216157]
[1741269465983,0.03,147.44,147.4,0.14216157]
[1741269466285,0.03,147.44,147.4,6.92636157]
[1741269466466,0.03,147.44,147.4,0.14216157]
[1741269466782,0.03,147.44,147.43,0.14216157]
[1741269467162,0.03,147.44,147.41,20.99260145]
[1741269468290,0.03,147.44,147.39,0.14216157]
[1741269468465,0.03,147.44,147.39,20.99260145]
[1741269468662,0.03,147.44,147.38,12.7171]
[1741269468663,20.88831242,147.44,147.38,20.85831242]
[1741269468978,0.03,147.44,147.39,20.85831242]
[1741269469367,0.03,147.44,147.4,0.14216157]
[1741269469683,0.03,147.44,147.43,0.14216157]
[1741269470362,0.03,147.44,147.4,33.35853883]
[1741269470564,0.03,147.44,147.41,0.14216157]
[1741269471193,33.38853883,147.44,147.39,0.14216157]
[1741269471379,33.35853883,147.42,147.36,41.31243883]
[1741269471572,33.35853883,147.42,147.36,7.9539]
[1741269471771,33.35853883,147.4,147.36,7.9539]
[1741269472087,0.03,147.44,147.32,7.6613]
[1741269472088,33.35853883,147.37,147.32,7.6613]
[1741269472286,6.7865,147.35,147.33,0.14216157]
[1741269472490,6.7865,147.35,147.31,5.50082681]
[1741269472678,6.7865,147.35,147.3,33.35853883]
[1741269472994,8.02,147.36,147.34,0.14216157]
[1741269473198,8.02,147.36,147.33,33.35853883]
[1741269473381,8.02,147.36,147.35,33.5007004]
[1741269474199,8.02,147.36,147.34,0.14216157]
[1741269474486,48.16463883,147.36,147.29,33.35853883]
[1741269474701,33.35853883,147.35,147.29,33.35853883]
[1741269474877,33.35853883,147.35,147.3,0.14216157]
[1741269475055,14.8061,147.36,147.28,41.50113883]
[1741269475056,33.35853883,147.34,147.28,41.50113883]
[1741269475262,33.35853883,147.35,147.29,33.5007004]
[1741269475573,48.16463883,147.36,147.29,33.35853883]
[1741269475883,8.02,147.36,147.32,33.5007004]
[1741269476694,8.02,147.36,147.34,33.5007004]
[1741269476856,8.02,147.36,147.34,0.14216157]
[1741269477059,8.02,147.36,147.32,33.5007004]
[1741269477494,8.02,147.36,147.32,0.14216157]
[1741269477665,8.02,147.36,147.33,0.14216157]
[1741269478263,6.7865,147.35,147.3,33.35853883]
[1741269478466,48.16473883,147.36,147.31,0.14216157]
[1741269478867,33.35853883,147.34,147.28,41.50113883]
[1741269479280,33.35853883,147.33,147.28,8.1426]
[1741269479490,33.35853883,147.34,147.29,0.14216157]
[1741269479702,33.35853883,147.35,147.29,33.5007004]
[1741269479991,41.37853883,147.36,147.3,33.35853883]
[1741269480159,40.14483883,147.36,147.3,33.35853883]
[1741269480363,8.0,147.36,147.32,0.14216157]
[1741269480566,41.35853883,147.36,147.32,0.14216157]
[1741269480980,8.0,147.36,147.31,0.14216157]
[1741269481179,8.0,147.36,147.31,33.5007004]
[1741269481387,33.35853883,147.39,147.3,6.7888]
[1741269481579,8.0,147.38,147.33,0.14216157]
[1741269481789,8.0,147.38,147.34,0.14216157]
[1741269482085,194.97853883,147.41,147.34,33.5007004]
[1741269482268,8.0,147.38,147.37,0.14216157]
[1741269482592,41.35853883,147.39,147.37,0.14216157]
[1741269482763,33.35853883,147.38,147.32,0.14216157]
[1741269483388,33.35853883,147.36,147.31,0.14216157]
[1741269483996,33.35853883,147.36,147.3,40.14713883]
[1741269484184,33.35853883,147.35,147.29,33.35853883]
[1741269484411,6.787,147.34,147.29,33.35853883]
[1741269484588,6.787,147.34,147.29,40.14773883]
[1741269484897,6.787,147.34,147.28,0.033]
[1741269484898,33.35853883,147.31,147.28,0.033]
[1741269485393,8.0,147.33,147.28,33.5337004]
[1741269485567,8.0,147.33,147.3,0.14216157]
[1741269485768,8.0,147.33,147.31,0.14216157]
[1741269486370,14.7876,147.33,147.29,0.14216157]
[1741269486567,8.0,147.33,147.29,0.14216157]
[1741269487800,8.0,147.33,147.29,33.5007004]
[1741269488401,8.0,147.33,147.3,33.35853883]
[1741269488702,8.0,147.36,147.33,0.14216157]
[1741269488993,8.0,147.36,147.35,0.14216157]
[1741269490101,8.0,147.39,147.36,0.14216157]
[1741269490403,40.14263883,147.41,147.36,0.14216157]
[1741269490404,8.0,147.4,147.36,33.5007004]
[1741269491178,8.0,147.4,147.35,33.5007004]
[1741269491386,8.0,147.4,147.35,33.52949594]
[1741269491698,8.0,147.4,147.33,8.3181]
[1741269491905,33.38733437,147.39,147.33,8.3181]
[1741269492212,33.38733437,147.38,147.34,0.14216157]
[1741269492424,33.38733437,147.37,147.31,33.38733437]
[1741269492715,6.7861,147.36,147.31,0.033]
[1741269493011,40.17343437,147.36,147.31,0.033]
[1741269493215,33.38733437,147.35,147.31,0.033]
[1741269493519,41.38733437,147.34,147.31,0.033]
[1741269494104,8.0,147.34,147.31,0.033]
[1741269495112,8.0,147.34,147.32,0.14216157]
[1741269495609,8.0,147.34,147.31,0.17516157]
[1741269495986,14.787,147.34,147.31,0.17516157]
[1741269496189,8.0,147.34,147.31,0.033]
[1741269498004,8.0,147.34,147.32,0.14216157]
[1741269498413,8.0,147.34,147.32,31.18460393]
[1741269498592,6.7856,147.37,147.32,6.92986157]
[1741269499122,37.82804236,147.37,147.32,0.14216157]
[1741269499307,31.04244236,147.36,147.31,0.14216157]
[1741269499490,31.04244236,147.35,147.31,0.14216157]
[1741269499903,31.04244236,147.34,147.3,0.14216157]
[1741269500103,31.04244236,147.34,147.29,7.707]
[1741269500415,31.04244236,147.32,147.28,0.033]
[1741269500611,8.0,147.31,147.28,0.033]
[1741269500924,14.7884,147.31,147.28,0.033]
[1741269501111,8.0,147.31,147.28,0.033]
[1741269501303,8.0,147.31,147.28,0.17516157]
[1741269501696,8.0,147.31,147.28,0.033]
[1741269502517,8.0,147.31,147.3,0.14216157]
[1741269502827,8.0,147.37,147.31,0.14216157]
[1741269503003,8.0,147.37,147.34,0.14216157]
[1741269504109,8.0,147.37,147.34,31.18460393]
[1741269504499,8.0,147.37,147.36,0.14216157]
[1741269506029,8.0,147.37,147.36,31.18460393]
[1741269506209,0.03,147.4,147.36,31.18460393]
[1741269506606,0.03,147.4,147.38,0.14216157]
[1741269507712,0.03,147.4,147.37,0.14216157]
[1741269508420,0.03,147.4,147.39,0.14216157]
[1741269509123,0.03,147.4,147.38,0.14216157]
[1741269510843,0.03,147.4,147.37,0.14216157]
[1741269511434,0.03,147.4,147.37,31.15002996]
[1741269511730,0.03,147.4,147.39,31.15002996]
[1741269512119,0.03,147.4,147.39,0.14216157]
[1741269512425,0.03,147.4,147.39,31.15002996]
[1741269512930,0.03,147.4,147.39,37.93472996]
[1741269513507,0.03,147.4,147.39,46.02462996]
[1741269515030,0.03,147.4,147.39,46.3089531]
[1741269516107,0.03,147.4,147.39,46.02462996]
[1741269516521,0.03,147.4,147.36,31.00786839]
[1741269516716,0.03,147.4,147.37,0.14216157]
[1741269517115,0.03,147.4,147.37,6.92766157]
[1741269517436,0.03,147.4,147.37,6.7855]
[1741269517835,0.03,147.4,147.36,37.79376839]
[1741269518036,0.03,147.4,147.37,0.14216157]
[1741269519234,0.03,147.4,147.32,37.79576839]
[1741269519447,0.03,147.4,147.31,45.71716839]
[1741269519635,18.67964886,147.4,147.31,0.033]
[1741269519837,18.64964886,147.38,147.31,0.033]
[1741269520146,12.1721,147.37,147.31,0.033]
[1741269520940,23.7513,147.36,147.31,0.033]
[1741269521126,7.98,147.35,147.31,0.033]
[1741269522146,6.787,147.34,147.31,0.033]
[1741269523255,7.98,147.35,147.32,0.14216157]
[1741269523951,14.7666,147.35,147.31,0.17516157]
[1741269524529,14.7666,147.35,147.31,0.033]
[1741269525257,31.733,147.35,147.31,0.033]
[1741269528352,14.7666,147.35,147.31,0.033]
[1741269528745,7.96,147.34,147.31,0.033]
[1741269528945,18.9577,147.37,147.32,0.14216157]
[1741269529453,7.96,147.36,147.32,0.14216157]
[1741269530165,0.03,147.35,147.31,0.17516157]
[1741269531379,0.03,147.35,147.31,0.033]
[1741269535272,18.963972,147.35,147.31,0.033]
[1741269535450,23.7545,147.34,147.31,0.033]
[1741269536969,6.787,147.34,147.31,0.033]
[1741269537463,6.8165,147.35,147.31,0.033]
[1741269538069,7.96,147.34,147.31,0.033]
[1741269539142,31.7145,147.34,147.31,0.033]
[1741269539490,31.7145,147.34,147.31,0.17516157]
[1741269540046,14.747,147.34,147.31,0.17516157]
[1741269540864,14.747,147.34,147.31,0.033]
[1741269541973,6.787,147.34,147.31,0.033]
[1741269542270,7.96,147.33,147.31,0.033]
[1741269543644,0.03,147.35,147.31,0.033]
[1741269543873,0.03,147.35,147.33,31.15002996]
[1741269544080,0.03,147.35,147.34,31.15002996]
[1741269545150,0.03,147.35,147.34,39.01082996]
[1741269545467,0.03,147.35,147.34,45.79782996]
[1741269545841,0.03,147.35,147.34,14.78996157]
[1741269546067,0.03,147.35,147.34,45.79782996]
[1741269546242,0.03,147.35,147.34,39.01082996]
[1741269546449,0.03,147.35,147.34,8.00296157]
[1741269546946,0.03,147.35,147.34,14.78996157]
[1741269547277,0.03,147.35,147.34,8.00296157]
[1741269548063,0.03,147.35,147.34,14.78996157]
[1741269549853,0.03,147.35,147.31,0.033]
[1741269550259,0.03,147.35,147.31,0.17516157]
[1741269550569,0.03,147.35,147.31,0.033]
[1741269552945,8.1198,147.33,147.28,0.033]
[1741269553143,7.94,147.32,147.28,0.033]
[1741269553372,18.933972,147.31,147.28,0.033]
[1741269553862,6.7888,147.3,147.28,0.033]
[1741269554072,23.7609,147.3,147.25,0.033]
[1741269554376,18.933972,147.28,147.25,0.033]
[1741269554752,24.33878139,147.28,147.25,0.0001]
[1741269555069,18.933972,147.25,147.17,1.730375]
[1741269555373,7.94,147.24,147.18,0.14216157]
[1741269555673,18.933972,147.23,147.17,1.730375]
[1741269555857,23.7738,147.22,147.17,1.730375]
[1741269556053,7.94,147.24,147.17,1.730375]
[1741269556257,6.7921,147.23,147.17,1.730375]
[1741269556465,7.94,147.22,147.17,1.730375]
[1741269556783,7.94,147.22,147.18,0.14216157]
[1741269557077,7.94,147.22,147.17,1.730375]
[1741269557246,7.94,147.21,147.17,1.730375]
[1741269558777,7.94,147.21,147.18,0.14216157]
[1741269558986,0.28432314,147.2,147.17,1.730375]
[1741269559161,0.28432314,147.17,147.07,17.30569799]
[1741269559367,0.28432314,147.17,147.07,10.50629799]
[1741269559686,0.28432314,147.17,147.04,6.8008]
[1741269559847,0.28432314,147.15,147.04,6.8008]
[1741269560066,7.94,147.14,147.04,6.8008]
[1741269560276,18.933972,147.13,147.03,7.9911]
[1741269560482,18.933972,147.13,147.03,14.7923]
[1741269561184,13.1563,147.12,146.99,10.50629799]
[1741269561375,0.28432314,147.11,146.99,17.30929799]
[1741269561577,0.28432314,147.11,146.99,10.50629799]
[1741269562175,18.933972,147.09,146.99,10.50629799]
[1741269562378,7.94,147.08,146.99,10.50629799]
[1741269562685,6.798,147.1,146.99,17.30939799]
[1741269562869,7.94,147.09,147.0,31.15002996]
[1741269563376,7.94,147.09,147.02,0.14216157]
[1741269563756,7.94,147.08,147.04,0.14216157]
[1741269564998,7.94,147.08,147.03,0.14216157]
[1741269565185,14.7392,147.08,147.03,0.14216157]
[1741269565355,7.94,147.08,147.03,0.14216157]
[1741269565685,7.94,147.08,147.01,6.94426157]
[1741269565907,14.739,147.08,146.97,6.8037]
[1741269566202,14.739,147.08,146.97,37.81156839]
[1741269566804,31.7365,147.08,146.97,37.81156839]
[1741269567186,31.7365,147.08,147.0,0.033]
[1741269567187,18.933972,147.07,147.0,0.033]
[1741269567716,18.933972,147.05,147.0,0.033]
[1741269568294,18.933972,147.01,146.88,1.730375]
[1741269568607,18.933972,146.95,146.88,1.730375]
[1741269568812,18.933972,146.93,146.88,1.730375]
[1741269568985,18.933972,146.93,146.88,0.730375]
[1741269570123,23.8224,146.92,146.88,0.730375]
[1741269570413,125.7,146.91,146.86,0.033]
[1741269570712,125.7,146.91,146.86,50.91232788]
[1741269571394,125.7,146.9,146.86,50.91232788]
[1741269571590,125.7,146.93,146.87,0.14216157]
[1741269573008,125.7,146.93,146.86,0.3640104]
[1741269573190,125.7,146.92,146.86,0.3640104]
[1741269573405,125.7,146.91,146.87,0.14216157]
[1741269573596,125.7,146.9,146.86,0.3640104]
[1741269573809,125.7,146.89,146.86,0.3640104]
[1741269574013,7.94,146.88,146.86,0.3640104]
[1741269574501,7.94,146.88,146.87,0.14216157]
[1741269575298,7.94,146.88,146.86,0.3640104]
[1741269575624,7.94,146.88,146.87,0.14216157]
[1741269579697,7.94,146.88,146.87,57.68802788]
[1741269579907,7.94,146.92,146.87,57.68802788]
[1741269580205,44.9,146.94,146.9,50.87932788]
[1741269580391,7.94,146.95,146.92,50.87932788]
[1741269580728,7.94,146.95,146.92,0.14216157]
[1741269581742,7.94,146.95,146.89,50.87932788]
[1741269581920,7.94,146.95,146.91,0.14216157]
[1741269582536,7.97,146.95,146.91,0.14216157]
[1741269583915,80.8,146.93,146.91,0.14216157]
[1741269584223,80.8,146.93,146.91,50.87932788]
[1741269584430,80.8,146.93,146.92,6.8064]
[1741269584634,80.8,146.93,146.92,57.68572788]
[1741269585133,0.03,146.95,146.93,0.14216157]
[1741269585467,0.03,146.95,146.93,50.87932788]
[1741269585638,68.651,147.0,146.96,0.14216157]
[1741269585945,46.411,146.99,146.96,0.14216157]
[1741269586164,46.411,146.99,146.94,50.73716631]
[1741269586333,46.411,146.99,146.95,0.14216157]
[1741269586519,46.411,146.99,146.96,6.8045]
[1741269586720,46.411,146.99,146.97,0.14216157]
[1741269587447,46.411,146.99,146.93,50.87932788]
[1741269587618,46.411,146.98,146.95,0.14216157]
[1741269588125,46.411,146.98,146.96,0.14216157]
[1741269588548,46.411,146.98,146.97,6.94626157]
[1741269589518,46.411,147.03,146.98,0.14216157]
[1741269589722,46.411,147.03,147.01,0.14216157]
[1741269591442,7.94,147.04,147.01,0.14216157]
[1741269591443,7.94,147.04,147.01,57.68132788]
[1741269591649,7.94,147.04,147.01,6.94416157]
[1741269591852,46.411,147.05,147.04,0.14216157]
[1741269592554,7.94,147.08,147.05,0.14216157]
[1741269593951,7.94,147.08,147.04,0.14216157]
[1741269594848,0.03,147.05,147.04,0.14216157]
[1741269595042,0.03,147.05,147.04,31.28597635]
[1741269595241,0.03,147.05,147.04,38.08677635]
[1741269595543,0.03,147.05,147.04,31.28597635]
[1741269596348,0.03,147.05,147.04,0.14216157]
[1741269596519,0.03,147.05,147.02,31.28597635]
[1741269597143,0.03,147.05,147.02,38.08757635]
[1741269598136,0.03,147.05,147.04,0.14216157]
[1741269598854,0.03,147.05,147.03,0.14216157]
[1741269600036,46.441,147.05,146.98,312.0]
[1741269600353,46.441,147.05,147.01,0.14216157]
[1741269600555,46.441,147.05,147.01,31.28597635]
[1741269600754,46.441,147.05,147.04,0.14216157]
[1741269601264,46.441,147.05,146.99,0.14216157]
[1741269601435,46.441,147.05,147.0,31.14381478]
[1741269601960,46.441,147.05,147.03,31.14381478]
[1741269602137,0.03,147.05,147.04,31.28597635]
[1741269602964,0.03,147.05,147.04,39.11057635]
[1741269603262,0.03,147.05,147.04,7.96676157]
[1741269603436,0.03,147.05,147.04,0.14216157]
[1741269603836,0.03,147.05,147.0,7.7921]
[1741269604157,7.92,147.04,147.0,7.7921]
[1741269604472,7.92,147.04,147.0,31.14381478]
[1741269604959,7.92,147.04,146.98,31.14381478]
[1741269605137,7.92,147.04,147.0,312.0]
[1741269605336,7.92,147.04,147.01,38.08787635]
[1741269606531,7.92,147.04,147.03,0.033]
[1741269607956,7.92,147.04,147.03,0.17516157]
[1741269608753,0.03,147.05,147.03,312.17516157]
[1741269608960,0.03,147.05,147.04,31.28597635]
[1741269609252,0.03,147.05,147.04,38.99797635]
[1741269609619,0.03,147.05,147.04,45.79877635]
[1741269610759,0.03,147.07,147.05,0.14216157]
[1741269610969,0.0001,147.07,147.06,62.42979113]
[1741269611171,0.03,147.13,147.07,0.14216157]
[1741269611378,46.411,147.12,147.07,31.28597635]
[1741269611561,46.411,147.11,147.04,38.85581478]
[1741269611758,46.411,147.1,147.05,6.8003]
[1741269611960,12.2201,147.08,147.05,312.0]
[1741269612151,12.2201,147.08,147.03,0.033]
[1741269612152,68.631,147.07,147.03,0.033]
[1741269613382,68.631,147.07,147.03,0.17516157]
[1741269613558,75.4305,147.07,147.03,0.17516157]
[1741269614091,75.4305,147.07,147.03,0.033]
[1741269614603,46.411,147.06,147.03,0.033]
[1741269614779,46.411,147.06,147.03,0.17516157]
[1741269614975,46.411,147.06,147.04,312.0]
[1741269615177,46.411,147.06,147.05,0.14216157]
[1741269615554,53.2109,147.06,147.05,0.14216157]
[1741269615763,46.411,147.05,147.03,0.033]
[1741269616077,60.711,147.04,147.03,0.033]
[1741269616255,23.7997,147.06,147.03,0.033]
[1741269616256,0.28432314,147.05,147.03,0.033]
[1741269616456,23.7997,147.06,147.03,0.033]
[1741269616654,14.3,147.05,147.03,0.033]
[1741269617567,6.8008,147.04,147.03,0.033]
[1741269617766,14.3,147.05,147.03,0.033]
[1741269617977,14.3,147.08,147.05,0.14216157]
[1741269618169,7.92,147.1,147.05,31.28597635]
[1741269618473,7.92,147.1,147.03,31.17681478]
[1741269618673,22.22,147.1,147.03,0.033]
[1741269618877,22.22,147.1,147.07,0.14216157]
[1741269619379,22.22,147.1,147.03,0.033]
[1741269619380,14.3,147.09,147.03,0.033]
[1741269619554,38.0965,147.08,147.03,0.033]
[1741269619753,21.099,147.08,147.03,0.033]
[1741269620460,14.3,147.07,147.03,0.033]
[1741269620860,95.1,147.07,147.03,0.033]
[1741269621480,101.8994,147.07,147.03,0.033]
[1741269622264,101.8994,147.07,147.04,0.14216157]
[1741269623375,95.1,147.06,147.04,0.14216157]
[1741269623571,6.8004,147.05,147.03,0.033]
[1741269623783,115.658,147.04,147.03,0.033]
[1741269624780,20.558,147.04,147.03,0.033]
[1741269625690,27.3588,147.04,147.03,0.033]
[1741269627886,0.28432314,146.99,146.94,0.033]
[1741269628086,169.94,146.98,146.94,0.033]
[1741269628898,6.8045,146.96,146.94,0.033]
[1741269629795,14.3,146.95,146.94,0.033]
[1741269629986,87.6045,146.96,146.94,0.033]
[1741269632194,6.8045,146.96,146.94,0.033]
[1741269632378,13.1351,146.94,146.88,0.3970104]
[1741269632570,21.986,146.93,146.88,0.3970104]
[1741269632771,14.3,146.92,146.88,0.3970104]
[1741269632966,30.1491,146.94,146.88,0.3970104]
[1741269633171,6.8059,146.93,146.88,0.3970104]
[1741269633480,22.22,146.95,146.89,31.28597635]
[1741269633661,46.0376,146.95,146.89,0.14216157]
[1741269634102,95.1,146.94,146.88,0.3970104]
[1741269634276,95.1,146.93,146.88,0.3970104]
[1741269634477,95.1,146.92,146.88,0.3970104]
[1741269634679,95.1,146.91,146.88,1.04e-05]
[1741269634903,18.8538,146.89,146.88,1.04e-05]
[1741269635220,95.1,146.88,146.83,0.4]
[1741269635379,18.933972,146.86,146.83,0.0001]
[1741269635582,18.933972,146.86,146.78,5.71924024]
[1741269635583,18.933972,146.84,146.78,5.71924024]
[1741269635781,103.02,146.83,146.78,5.71924024]
[1741269636091,12.8631,146.81,146.78,4.024e-05]
[1741269636388,95.1,146.8,146.78,4.024e-05]
[1741269636801,80.8,146.79,146.78,4.024e-05]
[1741269636968,87.6124,146.79,146.78,4.024e-05]
[1741269637687,88.72,146.79,146.78,4.024e-05]
[1741269637886,7.92,146.79,146.78,4.024e-05]
[1741269638585,80.8,146.84,146.78,31.28601659]
[1741269638881,88.72,146.83,146.79,31.28597635]
[1741269639075,7.92,146.83,146.79,31.28597635]
[1741269639292,7.92,146.83,146.78,31.28601659]
[1741269639470,7.92,146.83,146.8,0.14216157]
[1741269640113,95.1,146.85,146.8,0.14216157]
[1741269640271,95.1,146.85,146.79,31.14381478]
[1741269640272,95.1,146.87,146.82,31.28597635]
[1741269640476,7.92,146.91,146.86,0.14216157]
[1741269640677,7.92,146.91,146.88,31.14381478]
[1741269640886,88.72,146.95,146.89,0.14216157]
[1741269641091,88.72,146.95,146.89,31.28597635]
[1741269641401,95.5251,146.95,146.89,0.14216157]
[1741269641717,14.3,146.96,146.91,31.28597635]
[1741269642016,88.72,146.97,146.94,0.14216157]
[1741269642219,7.92,146.97,146.94,0.14216157]
[1741269642397,7.92,146.97,146.96,0.14216157]
[1741269642600,88.72,147.02,146.96,50.80918555]
[1741269642992,7.92,147.02,146.98,50.80918555]
[1741269643206,22.22,147.05,146.99,50.66702398]
[1741269643410,14.3,147.05,147.0,0.14216157]
[1741269643714,21.1004,147.05,147.0,0.14216157]
[1741269644014,257.68,147.06,147.0,0.14216157]
[1741269644710,257.68,147.06,147.01,0.14216157]
[1741269645520,257.68,147.06,146.99,0.14216157]
[1741269645918,274.6798,147.06,146.99,0.14216157]
[1741269646088,274.6798,147.06,146.97,50.80918555]
[1741269646089,257.68,147.06,146.97,50.80918555]
[1741269646294,257.68,147.06,147.04,0.14216157]
[1741269646792,257.68,147.06,147.03,4.687224]
[1741269646990,257.68,147.06,147.04,0.14216157]
[1741269647193,257.68,147.06,147.03,4.687224]
[1741269647587,257.68,147.06,147.04,0.14216157]
[1741269648518,95.1,147.05,147.03,4.687224]
[1741269648921,95.1,147.04,147.03,4.82938557]
[1741269649217,6.8008,147.04,147.03,4.82938557]
[1741269652708,14.3,147.05,147.03,4.82938557]
[1741269652709,21.1005,147.05,147.04,0.14216157]
[1741269653135,95.1,147.05,147.04,0.14216157]
[1741269653299,14.6999,147.06,147.04,0.14216157]
[1741269653714,6.7999,147.06,147.04,0.14216157]
[1741269653913,0.03,147.07,147.04,0.14216157]
[1741269654225,6.8295,147.07,147.04,0.14216157]
[1741269654731,0.03,147.07,147.04,0.14216157]
[1741269654903,6.8295,147.07,147.04,0.14216157]
[1741269655229,0.03,147.07,147.04,0.14216157]
[1741269655815,0.03,147.07,147.04,312.14216157]
[1741269658730,0.03,147.07,147.06,0.14216157]
[1741269660910,0.03,147.07,147.03,4.687224]
[1741269660911,0.03,147.07,147.04,0.14216157]
[1741269661430,0.03,147.07,147.04,50.80918555]
[1741269661616,0.03,147.07,147.06,0.14216157]
[1741269662309,0.03,147.07,147.05,0.14216157]
[1741269664304,0.03,147.07,147.05,50.80918555]
[1741269664501,0.03,147.07,147.06,0.14216157]
[1741269665930,0.03,147.07,147.06,50.21642958]
[1741269666226,80.8,147.12,147.1,0.14216157]
[1741269666433,0.03,147.13,147.1,0.14216157]
[1741269666607,6.8268,147.13,147.1,0.14216157]
[1741269667533,0.03,147.13,147.1,312.14216157]
[1741269667933,0.03,147.13,147.1,31.28245758]
[1741269668136,0.03,147.13,147.12,31.28245758]
[1741269668709,0.03,147.13,147.12,131.51642958]
[1741269668937,6.794,147.19,147.13,0.14216157]
[1741269669135,6.794,147.19,147.15,0.14216157]
[1741269669521,0.03,147.2,147.17,0.14216157]
[1741269669835,0.03,147.2,147.17,31.28245758]
[1741269670144,6.8238,147.2,147.15,0.14216157]
[1741269670440,6.8238,147.2,147.15,31.14029601]
[1741269670740,6.8238,147.2,147.15,0.14216157]
[1741269670911,0.03,147.2,147.19,312.14216157]
[1741269671616,0.03,147.2,147.19,0.14216157]
[1741269672437,80.83,147.2,147.13,8.0956]
[1741269672743,80.8,147.19,147.13,8.0956]
[1741269673324,80.8,147.19,147.14,0.14216157]
[1741269673641,6.7944,147.18,147.13,8.0956]
[1741269674237,104.5804,147.18,147.11,0.21324235]
[1741269674428,116.7504,147.18,147.11,0.21324235]
[1741269674658,80.8,147.17,147.11,312.21324235]
[1741269674835,80.8,147.16,147.11,312.21324235]